[Event "*** Titled Tuesday Blitz"]
[Site "Chess.com"]
[Date "2020.04.21"]
[Round "4"]
[White "Zaven_ChessMood"]
[Black "Bulldog167"]
[Result "0-1"]
[WhiteElo "2961"]
[BlackElo "2783"]
[TimeControl "180+1"]
[EndTime "10:38:25 PDT"]
[Termination "Bulldog167 won by resignation"]

1. e4 {[%clk 0:03:00.9]} 1... e5 {[%clk 0:02:59.9]} 2. Nf3 {[%clk 0:03:00.7]}
2... Nc6 {[%clk 0:02:59.1]} 3. Bc4 {[%clk 0:03:01.3]} 3... Bc5 {[%clk 0:02:59]}
4. d3 {[%clk 0:03:01.7]} 4... Nf6 {[%clk 0:02:58]} 5. Nbd2 {[%clk 0:03:02.1]}
5... d6 {[%clk 0:02:57.5]} 6. O-O {[%clk 0:03:02.4]} 6... a6 {[%clk 0:02:56.8]}
7. c3 {[%clk 0:03:02.8]} 7... Ba7 {[%clk 0:02:56.7]} 8. Bb3 {[%clk 0:03:03.2]}
8... O-O {[%clk 0:02:56.5]} 9. h3 {[%clk 0:03:03.7]} 9... h6 {[%clk 0:02:56.5]}
10. Re1 {[%clk 0:03:04.2]} 10... Nh5 {[%clk 0:02:56.8]} 11. Nf1 {[%clk
0:03:00.6]} 11... Qf6 {[%clk 0:02:56.7]} 12. Ne3 {[%clk 0:03:00.7]} 12... Nf4
{[%clk 0:02:54.9]} 13. Ng4 {[%clk 0:02:59.6]} 13... Qg6 {[%clk 0:02:41.3]} 14.
Bxf4 {[%clk 0:02:58.3]} 14... exf4 {[%clk 0:02:42.2]} 15. d4 {[%clk 0:02:59]}
15... Bxg4 {[%clk 0:02:41.9]} 16. hxg4 {[%clk 0:02:59.9]} 16... Qxg4 {[%clk
0:02:41.8]} 17. Qd3 {[%clk 0:03:00.5]} 17... Kh8 {[%clk 0:02:31.6]} 18. a4
{[%clk 0:02:56.8]} 18... Rae8 {[%clk 0:02:29.4]} 19. a5 {[%clk 0:02:55.4]} 19...
Ne7 {[%clk 0:02:24.3]} 20. Bc2 {[%clk 0:02:53.8]} 20... Ng6 {[%clk 0:02:23.4]}
21. e5 {[%clk 0:02:50.5]} 21... Bb8 {[%clk 0:01:59.1]} 22. e6 {[%clk 0:02:47.3]}
22... f5 {[%clk 0:01:56.6]} 23. Re2 {[%clk 0:02:28.9]} 23... Re7 {[%clk
0:01:45.1]} 24. Rae1 {[%clk 0:02:28.1]} 24... Rf6 {[%clk 0:01:42.2]} 25. b4
{[%clk 0:02:24.3]} 25... Nh4 {[%clk 0:01:17.3]} 26. Nxh4 {[%clk 0:02:19.9]}
26... Qxh4 {[%clk 0:01:18.2]} 27. Qf3 {[%clk 0:02:16.2]} 27... c6 {[%clk
0:01:17.4]} 28. c4 {[%clk 0:02:15.8]} 28... Ba7 {[%clk 0:01:11.4]} 29. c5 {[%clk
0:02:08.4]} 29... d5 {[%clk 0:01:10.7]} 30. g3 {[%clk 0:02:08.5]} 30... fxg3
{[%clk 0:01:09]} 31. fxg3 {[%clk 0:02:09.4]} 31... Qxd4+ {[%clk 0:01:09.1]} 32.
Kg2 {[%clk 0:02:09.7]} 32... Qxb4 {[%clk 0:01:06.5]} 33. Re5 {[%clk 0:02:03.6]}
33... Qxc5 {[%clk 0:01:03.3]} 34. Bb1 {[%clk 0:02:03.6]} 34... g6 {[%clk
0:00:56.2]} 35. Qf4 {[%clk 0:01:58.6]} 35... Kg7 {[%clk 0:00:55.7]} 36. R5e2
{[%clk 0:01:48.1]} 36... Qd4 {[%clk 0:00:45.1]} 37. Qd6 {[%clk 0:01:43.6]} 37...
Bc5 {[%clk 0:00:45.4]} 38. Qd8 {[%clk 0:01:43.5]} 38... Rf8 {[%clk 0:00:43.8]}
39. Qd7 {[%clk 0:01:40.8]} 39... Rxd7 {[%clk 0:00:42.1]} 40. exd7 {[%clk
0:01:41.7]} 40... Rd8 {[%clk 0:00:42.6]} 41. Re8 {[%clk 0:01:35.2]} 41... Rxd7
{[%clk 0:00:40]} 0-1

[Event "*** Titled Tuesday Blitz"]
[Site "Chess.com"]
[Date "2020.04.21"]
[Round "4"]
[White "Mfcyryd"]
[Black "semchik73"]
[Result "1/2-1/2"]
[WhiteElo "2530"]
[BlackElo "2286"]
[TimeControl "180+1"]
[EndTime "10:38:26 PDT"]
[Termination "Game drawn - insufficient material"]

1. e4 {[%clk 0:03:00]} 1... Nf6 {[%clk 0:02:59.5]} 2. e5 {[%clk 0:02:59.2]} 2...
Nd5 {[%clk 0:02:59.6]} 3. d4 {[%clk 0:02:59]} 3... d6 {[%clk 0:02:59.2]} 4. exd6
{[%clk 0:02:59.2]} 4... cxd6 {[%clk 0:02:58.8]} 5. c4 {[%clk 0:02:58.4]} 5...
Nb6 {[%clk 0:02:58.6]} 6. Be3 {[%clk 0:02:57.6]} 6... g6 {[%clk 0:02:57.8]} 7.
Nc3 {[%clk 0:02:57.1]} 7... Bg7 {[%clk 0:02:58.2]} 8. Rc1 {[%clk 0:02:56.5]}
8... O-O {[%clk 0:02:58.5]} 9. b3 {[%clk 0:02:56.1]} 9... e5 {[%clk 0:02:54.7]}
10. dxe5 {[%clk 0:02:55.3]} 10... dxe5 {[%clk 0:02:54.4]} 11. Qxd8 {[%clk
0:02:56.2]} 11... Rxd8 {[%clk 0:02:54]} 12. c5 {[%clk 0:02:56.7]} 12... N6d7
{[%clk 0:02:53]} 13. Bc4 {[%clk 0:02:55.8]} 13... Nc6 {[%clk 0:02:50.3]} 14. Nf3
{[%clk 0:02:52.6]} 14... Nd4 {[%clk 0:02:50.2]} 15. b4 {[%clk 0:02:37.6]} 15...
Nxf3+ {[%clk 0:02:43.8]} 16. gxf3 {[%clk 0:02:36]} 16... Nf6 {[%clk 0:02:43.3]}
17. Ke2 {[%clk 0:02:31]} 17... Bf5 {[%clk 0:02:38]} 18. Rhd1 {[%clk 0:02:29.9]}
18... e4 {[%clk 0:02:30.1]} 19. fxe4 {[%clk 0:02:24.3]} 19... Nxe4 {[%clk
0:02:30.3]} 20. Nd5 {[%clk 0:02:18.7]} 20... Be6 {[%clk 0:02:19.2]} 21. Bd4
{[%clk 0:01:46.1]} 21... Bxd5 {[%clk 0:02:14]} 22. Bxg7 {[%clk 0:01:38.5]} 22...
Bxc4+ {[%clk 0:01:53.1]} 23. Rxc4 {[%clk 0:01:39.4]} 23... Rxd1 {[%clk
0:01:50.2]} 24. Kxd1 {[%clk 0:01:38.3]} 24... Nxf2+ {[%clk 0:01:50]} 25. Ke2
{[%clk 0:01:37.2]} 25... Kxg7 {[%clk 0:01:50.5]} 26. Kxf2 {[%clk 0:01:37.2]}
26... Rd8 {[%clk 0:01:51]} 27. a4 {[%clk 0:01:36.7]} 27... Rd2+ {[%clk 0:01:50]}
28. Kg3 {[%clk 0:01:35.3]} 28... a6 {[%clk 0:01:43.6]} 29. b5 {[%clk 0:01:35.3]}
29... axb5 {[%clk 0:01:43.2]} 30. axb5 {[%clk 0:01:36.2]} 30... Rb2 {[%clk
0:01:42.8]} 31. c6 {[%clk 0:01:36.2]} 31... bxc6 {[%clk 0:01:42.1]} 32. bxc6
{[%clk 0:01:37.1]} 32... Rb8 {[%clk 0:01:42.3]} 33. Kf4 {[%clk 0:01:37.4]} 33...
Kf6 {[%clk 0:01:41.5]} 34. h4 {[%clk 0:01:37.3]} 34... Rc8 {[%clk 0:01:41.5]}
35. c7 {[%clk 0:01:34.3]} 35... Ke7 {[%clk 0:01:41.1]} 36. Kg5 {[%clk
0:01:34.6]} 36... Kd7 {[%clk 0:01:38.6]} 37. Kf6 {[%clk 0:01:33.2]} 37... Rxc7
{[%clk 0:00:59]} 38. Rxc7+ {[%clk 0:01:31.9]} 38... Kxc7 {[%clk 0:00:59.4]} 39.
Kxf7 {[%clk 0:01:32.8]} 39... Kd6 {[%clk 0:00:55.5]} 40. Kg7 {[%clk 0:01:32.3]}
40... Ke6 {[%clk 0:00:55]} 41. Kxh7 {[%clk 0:01:32.7]} 41... Kf5 {[%clk
0:00:51.9]} 42. Kh6 {[%clk 0:01:32.2]} 42... Kg4 {[%clk 0:00:51.2]} 43. Kxg6
{[%clk 0:01:32.3]} 43... Kxh4 {[%clk 0:00:51.2]} 1/2-1/2

[Event "*** Titled Tuesday Blitz"]
[Site "Chess.com"]
[Date "2020.04.21"]
[Round "4"]
[White "1977Ivan"]
[Black "swimmerchess"]
[Result "0-1"]
[WhiteElo "2689"]
[BlackElo "2836"]
[TimeControl "180+1"]
[EndTime "10:38:27 PDT"]
[Termination "swimmerchess won by resignation"]

1. e4 {[%clk 0:03:00.9]} 1... c5 {[%clk 0:02:59.9]} 2. Nc3 {[%clk 0:03:01]} 2...
a6 {[%clk 0:02:59.6]} 3. f4 {[%clk 0:02:55.9]} 3... b5 {[%clk 0:02:59.8]} 4. Nf3
{[%clk 0:02:54.5]} 4... Bb7 {[%clk 0:03:00.5]} 5. d3 {[%clk 0:02:54.7]} 5... e6
{[%clk 0:03:00]} 6. g4 {[%clk 0:02:53]} 6... b4 {[%clk 0:02:49.8]} 7. Na4 {[%clk
0:02:45.6]} 7... d5 {[%clk 0:02:49.3]} 8. Qe2 {[%clk 0:02:44.9]} 8... Nf6 {[%clk
0:02:38.8]} 9. exd5 {[%clk 0:02:03.8]} 9... Bxd5 {[%clk 0:02:35.2]} 10. g5
{[%clk 0:01:57.8]} 10... Nfd7 {[%clk 0:02:34.6]} 11. Bg2 {[%clk 0:01:56]} 11...
Be7 {[%clk 0:02:34.2]} 12. b3 {[%clk 0:01:52]} 12... O-O {[%clk 0:02:28.7]} 13.
Bb2 {[%clk 0:01:51.2]} 13... Nc6 {[%clk 0:02:24.6]} 14. O-O-O {[%clk 0:01:50]}
14... Nb6 {[%clk 0:02:13.4]} 15. Nxb6 {[%clk 0:01:44.3]} 15... Qxb6 {[%clk
0:02:14.3]} 16. Ne5 {[%clk 0:01:33.1]} 16... Bxg2 {[%clk 0:02:11.1]} 17. Nd7
{[%clk 0:01:17.1]} 17... Qc7 {[%clk 0:02:08.1]} 18. Nxf8 {[%clk 0:01:16.7]}
18... Bxh1 {[%clk 0:02:02.4]} 19. Nxe6 {[%clk 0:01:12.1]} 19... fxe6 {[%clk
0:02:02.6]} 20. Qxe6+ {[%clk 0:01:11.4]} 20... Kh8 {[%clk 0:02:03]} 21. Qf7
{[%clk 0:00:50.9]} 21... Nd4 {[%clk 0:02:02.9]} 22. Re1 {[%clk 0:00:36.3]} 22...
Qd8 {[%clk 0:01:25.9]} 23. Rxe7 {[%clk 0:00:32.1]} 23... Qg8 {[%clk 0:01:26.4]}
24. Qxg8+ {[%clk 0:00:20.6]} 24... Kxg8 {[%clk 0:01:27.3]} 25. Re5 {[%clk
0:00:19]} 25... Rc8 {[%clk 0:01:24.7]} 26. Kd2 {[%clk 0:00:18.1]} 26... Nf3+
{[%clk 0:01:24.3]} 27. Ke3 {[%clk 0:00:18.3]} 27... Nxe5 {[%clk 0:01:25.2]} 28.
Bxe5 {[%clk 0:00:18.2]} 28... Kf7 {[%clk 0:01:25.5]} 0-1

[Event "*** Titled Tuesday Blitz"]
[Site "Chess.com"]
[Date "2020.04.21"]
[Round "4"]
[White "varacalli"]
[Black "Blagorod"]
[Result "1-0"]
[WhiteElo "2360"]
[BlackElo "2118"]
[TimeControl "180+1"]
[EndTime "10:38:27 PDT"]
[Termination "varacalli won by resignation"]

1. d4 {[%clk 0:03:00.9]} 1... d5 {[%clk 0:02:59.5]} 2. Nf3 {[%clk 0:03:00.7]}
2... Nc6 {[%clk 0:02:57.6]} 3. Bf4 {[%clk 0:03:00]} 3... Bg4 {[%clk 0:02:56.2]}
4. e3 {[%clk 0:03:00]} 4... e6 {[%clk 0:02:56.3]} 5. Nbd2 {[%clk 0:02:59.4]}
5... Bd6 {[%clk 0:02:56.5]} 6. Bg3 {[%clk 0:02:59.3]} 6... Nge7 {[%clk
0:02:49.4]} 7. Be2 {[%clk 0:02:57.5]} 7... O-O {[%clk 0:02:48.6]} 8. a3 {[%clk
0:02:54]} 8... Nf5 {[%clk 0:02:44]} 9. c4 {[%clk 0:02:52.7]} 9... dxc4 {[%clk
0:02:17.5]} 10. Nxc4 {[%clk 0:02:49.9]} 10... Re8 {[%clk 0:02:14.9]} 11. O-O
{[%clk 0:02:46.7]} 11... Nxg3 {[%clk 0:02:14.3]} 12. hxg3 {[%clk 0:02:46.8]}
12... Bf8 {[%clk 0:02:02.6]} 13. Rc1 {[%clk 0:02:39.5]} 13... Ne7 {[%clk
0:01:55.2]} 14. b4 {[%clk 0:02:38.8]} 14... c6 {[%clk 0:01:53.3]} 15. Re1 {[%clk
0:02:33.1]} 15... g6 {[%clk 0:01:52.2]} 16. Qb3 {[%clk 0:02:32.5]} 16... Bg7
{[%clk 0:01:50.2]} 17. a4 {[%clk 0:02:27]} 17... Nf5 {[%clk 0:01:26]} 18. Nfd2
{[%clk 0:02:03.8]} 18... Bxe2 {[%clk 0:01:25.2]} 19. Rxe2 {[%clk 0:02:04.4]}
19... Bxd4 {[%clk 0:01:18.1]} 20. g4 {[%clk 0:01:51.8]} 20... Bxe3 {[%clk
0:01:13.8]} 21. gxf5 {[%clk 0:01:42]} 21... Bxd2 {[%clk 0:01:09.3]} 22. Rxd2
{[%clk 0:01:39]} 22... Qg5 {[%clk 0:01:06.1]} 23. fxg6 {[%clk 0:01:37.4]} 23...
hxg6 {[%clk 0:01:05.2]} 24. Qe3 {[%clk 0:01:31.6]} 24... Qh5 {[%clk 0:00:57.4]}
25. Rcd1 {[%clk 0:01:24.8]} 25... Kg7 {[%clk 0:00:49.6]} 26. Qe5+ {[%clk
0:01:24]} 26... Qxe5 {[%clk 0:00:47]} 27. Nxe5 {[%clk 0:01:24.4]} 27... Kf6
{[%clk 0:00:40.5]} 28. f4 {[%clk 0:01:15.9]} 28... Rh8 {[%clk 0:00:35.8]} 29.
Rd7 {[%clk 0:01:15]} 29... Raf8 {[%clk 0:00:35.8]} 30. Rxb7 {[%clk 0:01:14.1]}
30... g5 {[%clk 0:00:36.1]} 31. Nd7+ {[%clk 0:01:14.1]} 1-0

[Event "*** Titled Tuesday Blitz"]
[Site "Chess.com"]
[Date "2020.04.21"]
[Round "4"]
[White "OparinGrigoriy"]
[Black "Incognito_Knight"]
[Result "1-0"]
[WhiteElo "2910"]
[BlackElo "2726"]
[TimeControl "180+1"]
[EndTime "10:38:28 PDT"]
[Termination "OparinGrigoriy won by resignation"]

1. Nf3 {[%clk 0:03:00.9]} 1... d5 {[%clk 0:02:59.2]} 2. g3 {[%clk 0:03:01.8]}
2... Nf6 {[%clk 0:02:58.7]} 3. Bg2 {[%clk 0:03:02.3]} 3... e6 {[%clk 0:02:59.2]}
4. c4 {[%clk 0:03:02.9]} 4... dxc4 {[%clk 0:02:58.4]} 5. Qa4+ {[%clk 0:03:02.3]}
5... Nbd7 {[%clk 0:02:58.5]} 6. Qxc4 {[%clk 0:03:02.3]} 6... a6 {[%clk
0:02:58.9]} 7. Qc2 {[%clk 0:03:00.8]} 7... c5 {[%clk 0:02:57.5]} 8. Nc3 {[%clk
0:03:01.2]} 8... Be7 {[%clk 0:02:41]} 9. O-O {[%clk 0:03:00.5]} 9... O-O {[%clk
0:02:41.2]} 10. d4 {[%clk 0:03:01.2]} 10... b5 {[%clk 0:02:23.1]} 11. Ne5 {[%clk
0:02:50.5]} 11... Nxe5 {[%clk 0:02:22.9]} 12. dxe5 {[%clk 0:02:51.4]} 12... Nd5
{[%clk 0:02:22.9]} 13. Rd1 {[%clk 0:02:47.7]} 13... Bb7 {[%clk 0:02:14.1]} 14.
a3 {[%clk 0:02:39.3]} 14... b4 {[%clk 0:02:01.9]} 15. Nxd5 {[%clk 0:02:26.2]}
15... exd5 {[%clk 0:01:59.8]} 16. axb4 {[%clk 0:02:25.7]} 16... cxb4 {[%clk
0:01:59.2]} 17. Qb3 {[%clk 0:02:26.3]} 17... Qd7 {[%clk 0:01:33.8]} 18. Bxd5
{[%clk 0:02:18.6]} 18... Bxd5 {[%clk 0:01:12.4]} 19. Rxd5 {[%clk 0:02:19.5]}
19... Qb7 {[%clk 0:01:07.7]} 20. e4 {[%clk 0:02:17.3]} 20... a5 {[%clk
0:01:06.4]} 21. Be3 {[%clk 0:02:13.4]} 21... h6 {[%clk 0:01:04.9]} 22. Qd3
{[%clk 0:02:05.1]} 22... Rfe8 {[%clk 0:00:55.1]} 23. Raxa5 {[%clk 0:02:01.3]}
23... Rxa5 {[%clk 0:00:54.6]} 24. Rxa5 {[%clk 0:02:02.2]} 24... Bf8 {[%clk
0:00:51.5]} 25. h4 {[%clk 0:01:57.4]} 25... Qc7 {[%clk 0:00:46.5]} 26. Rb5
{[%clk 0:01:54.7]} 26... Qc6 {[%clk 0:00:36]} 27. Rd5 {[%clk 0:01:49.7]} 27...
Ra8 {[%clk 0:00:30.1]} 28. Kg2 {[%clk 0:01:48.8]} 28... Ra2 {[%clk 0:00:27.1]}
29. b3 {[%clk 0:01:44]} 29... Rc2 {[%clk 0:00:25.2]} 30. Rd8 {[%clk 0:01:41.5]}
30... Rc3 {[%clk 0:00:25.3]} 31. Qd5 {[%clk 0:01:41.4]} 31... Qc7 {[%clk
0:00:15.8]} 32. Rd7 {[%clk 0:01:38.6]} 1-0

[Event "*** Titled Tuesday Blitz"]
[Site "Chess.com"]
[Date "2020.04.21"]
[Round "4"]
[White "Onwgs"]
[Black "DishonorOnYourCow"]
[Result "1-0"]
[WhiteElo "2482"]
[BlackElo "2297"]
[TimeControl "180+1"]
[EndTime "10:38:32 PDT"]
[Termination "Onwgs won on time"]

1. e4 {[%clk 0:02:52.7]} 1... e5 {[%clk 0:02:58.5]} 2. Bc4 {[%clk 0:02:52.4]}
2... Nc6 {[%clk 0:02:56.8]} 3. Nc3 {[%clk 0:02:52.5]} 3... Nf6 {[%clk
0:02:55.8]} 4. d3 {[%clk 0:02:52.8]} 4... Bc5 {[%clk 0:02:55]} 5. f4 {[%clk
0:02:52.7]} 5... d6 {[%clk 0:02:39.8]} 6. Nf3 {[%clk 0:02:52.2]} 6... Bg4 {[%clk
0:02:39]} 7. Na4 {[%clk 0:02:52.1]} 7... a6 {[%clk 0:02:23.3]} 8. Nxc5 {[%clk
0:02:51.2]} 8... dxc5 {[%clk 0:02:24.2]} 9. c3 {[%clk 0:02:37.3]} 9... b5 {[%clk
0:02:14.4]} 10. Bb3 {[%clk 0:02:36.3]} 10... exf4 {[%clk 0:01:41.5]} 11. Bxf4
{[%clk 0:02:34.6]} 11... c4 {[%clk 0:01:41.2]} 12. dxc4 {[%clk 0:02:32.9]} 12...
Qxd1+ {[%clk 0:01:40.4]} 13. Rxd1 {[%clk 0:02:32.7]} 13... O-O {[%clk
0:01:10.9]} 14. cxb5 {[%clk 0:02:29]} 14... axb5 {[%clk 0:01:09.5]} 15. O-O
{[%clk 0:02:25.4]} 15... Na5 {[%clk 0:00:55.7]} 16. Bc2 {[%clk 0:02:12.2]} 16...
c6 {[%clk 0:00:55]} 17. h3 {[%clk 0:02:08]} 17... Bxf3 {[%clk 0:00:51.8]} 18.
gxf3 {[%clk 0:02:06.4]} 18... Nc4 {[%clk 0:00:51.2]} 19. b3 {[%clk 0:02:06.6]}
19... Nb2 {[%clk 0:00:31.2]} 20. Rd2 {[%clk 0:01:58.6]} 20... Rfd8 {[%clk
0:00:19.5]} 21. Rff2 {[%clk 0:01:55.3]} 21... Rxd2 {[%clk 0:00:17.7]} 22. Rxd2
{[%clk 0:01:55.3]} 22... Nh5 {[%clk 0:00:15.1]} 23. Be3 {[%clk 0:01:50.5]} 23...
h6 {[%clk 0:00:09.7]} 24. Bb1 {[%clk 0:01:49.6]} 24... Na4 {[%clk 0:00:05.5]}
25. bxa4 {[%clk 0:01:49.3]} 25... Rxa4 {[%clk 0:00:06.4]} 26. e5 {[%clk
0:01:49.2]} 26... g5 {[%clk 0:00:04.2]} 27. Rd8+ {[%clk 0:01:47.1]} 27... Kg7
{[%clk 0:00:03.8]} 28. Bd4 {[%clk 0:01:48]} 28... Nf4 {[%clk 0:00:02.7]} 29. e6+
{[%clk 0:01:47.9]} 29... f6 {[%clk 0:00:01.5]} 30. e7 {[%clk 0:01:48.3]} 1-0

[Event "*** Titled Tuesday Blitz"]
[Site "Chess.com"]
[Date "2020.04.21"]
[Round "4"]
[White "KarpovVadim"]
[Black "thedjoker98"]
[Result "1-0"]
[WhiteElo "2319"]
[BlackElo "2479"]
[TimeControl "180+1"]
[EndTime "10:38:33 PDT"]
[Termination "KarpovVadim won by resignation"]

1. Nf3 {[%clk 0:03:00.9]} 1... d5 {[%clk 0:02:58.4]} 2. d4 {[%clk 0:03:00.1]}
2... Nf6 {[%clk 0:02:57.7]} 3. c4 {[%clk 0:02:59.8]} 3... c6 {[%clk 0:02:56]} 4.
e3 {[%clk 0:02:58.3]} 4... Bg4 {[%clk 0:02:55.5]} 5. Nc3 {[%clk 0:02:56.9]} 5...
e6 {[%clk 0:02:55.5]} 6. h3 {[%clk 0:02:56.7]} 6... Bh5 {[%clk 0:02:55.4]} 7. g4
{[%clk 0:02:53.7]} 7... Bg6 {[%clk 0:02:55.5]} 8. Ne5 {[%clk 0:02:54]} 8... Nbd7
{[%clk 0:02:55.7]} 9. Nxg6 {[%clk 0:02:53.5]} 9... hxg6 {[%clk 0:02:56.6]} 10.
cxd5 {[%clk 0:02:47.8]} 10... exd5 {[%clk 0:02:56.2]} 11. Bg2 {[%clk 0:02:47.5]}
11... g5 {[%clk 0:02:55.1]} 12. Bd2 {[%clk 0:02:44.4]} 12... Bd6 {[%clk
0:02:54.8]} 13. Qc2 {[%clk 0:02:40.1]} 13... Qc7 {[%clk 0:02:50.3]} 14. O-O-O
{[%clk 0:02:39.2]} 14... O-O-O {[%clk 0:02:49.7]} 15. Kb1 {[%clk 0:02:38.2]}
15... Kb8 {[%clk 0:02:48.3]} 16. Rhe1 {[%clk 0:02:34.9]} 16... Rde8 {[%clk
0:02:45.5]} 17. Bc1 {[%clk 0:02:21.8]} 17... Nf8 {[%clk 0:02:28.5]} 18. e4
{[%clk 0:02:15.2]} 18... Nxe4 {[%clk 0:02:21.9]} 19. Nxe4 {[%clk 0:02:07.2]}
19... dxe4 {[%clk 0:02:22.8]} 20. Bxg5 {[%clk 0:02:05.4]} 20... Bf4 {[%clk
0:02:19.3]} 21. Bxf4 {[%clk 0:01:57.6]} 21... Qxf4 {[%clk 0:02:20.2]} 22. d5
{[%clk 0:01:49.9]} 22... cxd5 {[%clk 0:01:57.7]} 23. Rxd5 {[%clk 0:01:49.3]}
23... Ng6 {[%clk 0:01:55.6]} 24. Rf5 {[%clk 0:01:44.9]} 24... Qd6 {[%clk
0:01:54.2]} 25. Rxf7 {[%clk 0:01:33.1]} 25... Nf4 {[%clk 0:01:28.8]} 26. Rd1
{[%clk 0:01:26]} 26... Nd5 {[%clk 0:00:58.5]} 27. Qb3 {[%clk 0:01:18.2]} 27...
Qb6 {[%clk 0:00:30.2]} 28. Rxd5 {[%clk 0:01:09.1]} 1-0

[Event "*** Titled Tuesday Blitz"]
[Site "Chess.com"]
[Date "2020.04.21"]
[Round "4"]
[White "Jadro9"]
[Black "exoticprincess"]
[Result "0-1"]
[WhiteElo "2710"]
[BlackElo "2872"]
[TimeControl "180+1"]
[EndTime "10:38:34 PDT"]
[Termination "exoticprincess won by resignation"]

1. e4 {[%clk 0:03:00.9]} 1... c6 {[%clk 0:03:00.9]} 2. Nc3 {[%clk 0:03:00.4]}
2... d5 {[%clk 0:03:01.8]} 3. Nf3 {[%clk 0:03:01.1]} 3... Bg4 {[%clk 0:03:00.8]}
4. h3 {[%clk 0:03:01.4]} 4... Bxf3 {[%clk 0:03:01.4]} 5. Qxf3 {[%clk 0:03:01.3]}
5... e6 {[%clk 0:03:02.3]} 6. g3 {[%clk 0:03:01.5]} 6... g6 {[%clk 0:03:02.8]}
7. Bg2 {[%clk 0:03:00.1]} 7... Nd7 {[%clk 0:03:03.5]} 8. d4 {[%clk 0:02:57.5]}
8... h5 {[%clk 0:03:03.1]} 9. Be3 {[%clk 0:02:55.7]} 9... Bh6 {[%clk 0:03:03.2]}
10. O-O-O {[%clk 0:02:54.3]} 10... Bxe3+ {[%clk 0:03:01.1]} 11. Qxe3 {[%clk
0:02:54.4]} 11... Ne7 {[%clk 0:03:01.7]} 12. g4 {[%clk 0:02:51.7]} 12... Qc7
{[%clk 0:03:00.8]} 13. f4 {[%clk 0:02:45.3]} 13... O-O-O {[%clk 0:02:57.1]} 14.
f5 {[%clk 0:02:30.1]} 14... gxf5 {[%clk 0:02:49.7]} 15. gxf5 {[%clk 0:02:23.6]}
15... Rhg8 {[%clk 0:02:48.5]} 16. fxe6 {[%clk 0:02:22.9]} 16... Rxg2 {[%clk
0:02:41.7]} 17. exd7+ {[%clk 0:02:22.4]} 17... Qxd7 {[%clk 0:02:42.6]} 18. Kb1
{[%clk 0:02:18.8]} 18... Rdg8 {[%clk 0:02:41.1]} 19. Qf3 {[%clk 0:02:15.3]}
19... f5 {[%clk 0:02:29.3]} 20. e5 {[%clk 0:02:05.1]} 20... Qe8 {[%clk
0:02:24.5]} 21. Ne2 {[%clk 0:02:02.9]} 21... h4 {[%clk 0:02:22]} 22. b3 {[%clk
0:01:44.9]} 22... R8g7 {[%clk 0:02:19.5]} 23. Nf4 {[%clk 0:01:40.3]} 23... R2g3
{[%clk 0:02:18.6]} 24. Qh5 {[%clk 0:01:40.5]} 24... Qxh5 {[%clk 0:02:09.7]} 25.
Nxh5 {[%clk 0:01:40.3]} 25... Rg8 {[%clk 0:02:04.5]} 26. Nxg3 {[%clk 0:01:35.6]}
26... hxg3 {[%clk 0:02:05.4]} 27. Rhg1 {[%clk 0:01:30.9]} 27... f4 {[%clk
0:02:03]} 28. h4 {[%clk 0:01:22.7]} 28... Rh8 {[%clk 0:02:01.4]} 29. Rh1 {[%clk
0:01:23]} 29... Nf5 {[%clk 0:01:55.8]} 30. Kc1 {[%clk 0:00:50.6]} 30... f3
{[%clk 0:01:53.3]} 31. Kd2 {[%clk 0:00:33.7]} 31... g2 {[%clk 0:01:49.6]} 32.
Rh2 {[%clk 0:00:30.6]} 32... Nxh4 {[%clk 0:01:40.8]} 0-1

[Event "*** Titled Tuesday Blitz"]
[Site "Chess.com"]
[Date "2020.04.21"]
[Round "4"]
[White "mitraasz"]
[Black "SirMittensofMittensville"]
[Result "0-1"]
[WhiteElo "2205"]
[BlackElo "2666"]
[TimeControl "180+1"]
[EndTime "10:38:35 PDT"]
[Termination "SirMittensofMittensville won by resignation"]

1. d4 {[%clk 0:03:00.9]} 1... Nf6 {[%clk 0:02:59.1]} 2. Nf3 {[%clk 0:03:01]}
2... e6 {[%clk 0:02:59.6]} 3. e3 {[%clk 0:03:01]} 3... d5 {[%clk 0:02:59.4]} 4.
Bd3 {[%clk 0:03:01.5]} 4... c5 {[%clk 0:02:58.9]} 5. Nbd2 {[%clk 0:03:01.2]}
5... Nc6 {[%clk 0:02:58.7]} 6. c3 {[%clk 0:03:01.3]} 6... Bd6 {[%clk 0:02:57.9]}
7. O-O {[%clk 0:03:01.1]} 7... O-O {[%clk 0:02:58.5]} 8. e4 {[%clk 0:03:01.3]}
8... cxd4 {[%clk 0:02:57.8]} 9. cxd4 {[%clk 0:03:00.8]} 9... dxe4 {[%clk
0:02:58.1]} 10. Nxe4 {[%clk 0:03:01.4]} 10... Nxe4 {[%clk 0:02:59]} 11. Bxe4
{[%clk 0:03:01.9]} 11... Be7 {[%clk 0:02:57.1]} 12. Be3 {[%clk 0:03:00.2]} 12...
Bf6 {[%clk 0:02:56.5]} 13. Rc1 {[%clk 0:02:58.7]} 13... Qd6 {[%clk 0:02:54.1]}
14. Qa4 {[%clk 0:02:53.2]} 14... Bd7 {[%clk 0:02:49.9]} 15. Rfd1 {[%clk
0:02:43.4]} 15... Nb4 {[%clk 0:02:39.5]} 16. Qb3 {[%clk 0:02:38.7]} 16... Rab8
{[%clk 0:02:08.9]} 17. a3 {[%clk 0:02:32.1]} 17... Bc6 {[%clk 0:02:08.4]} 18.
Bxc6 {[%clk 0:02:21.5]} 18... Nxc6 {[%clk 0:02:09.3]} 19. d5 {[%clk 0:02:21.4]}
19... exd5 {[%clk 0:02:08.9]} 20. Rxd5 {[%clk 0:02:21.5]} 20... Qe6 {[%clk
0:02:07.1]} 21. Rcd1 {[%clk 0:02:14.3]} 21... Rfe8 {[%clk 0:02:04.3]} 22. h3
{[%clk 0:02:00.5]} 22... h6 {[%clk 0:02:04]} 23. Nd4 {[%clk 0:01:44.7]} 23...
Nxd4 {[%clk 0:01:20.7]} 24. Bxd4 {[%clk 0:01:43]} 24... Bxd4 {[%clk 0:01:21.6]}
25. R1xd4 {[%clk 0:01:42.3]} 25... Qe1+ {[%clk 0:01:21.5]} 26. Kh2 {[%clk
0:01:41.6]} 26... Qxf2 {[%clk 0:01:21.6]} 27. Qd3 {[%clk 0:01:03]} 27... g6
{[%clk 0:01:15.1]} 28. b4 {[%clk 0:00:56.5]} 28... Re3 {[%clk 0:01:09.8]} 29.
Rd8+ {[%clk 0:00:52.5]} 29... Rxd8 {[%clk 0:01:09.3]} 30. Rxd8+ {[%clk 0:00:52]}
30... Kh7 {[%clk 0:01:10.2]} 31. Qd6 {[%clk 0:00:46]} 31... Re2 {[%clk
0:01:00.9]} 32. Qd5 {[%clk 0:00:42.5]} 32... Qf4+ {[%clk 0:01:00.3]} 0-1